bitfinex-derivatives/quotes_BNBF0:USTF0_20250126
["timestamp","ask_amount","ask_price","bid_price","bid_amount"]
[1737863620605,1.07968383,690.44,689.51,0.29006105]
[1737863621411,1.07968383,690.4,689.51,0.29006105]
[1737863627816,1.07968383,690.34,689.51,0.29006105]
[1737863631118,2.90973174,690.86,689.51,0.29006105]
[1737863631119,1.07968383,690.71,689.51,0.29006105]
[1737863637719,1.07968383,690.73,689.51,0.29006105]
[1737863640629,1.07968383,690.5,689.51,0.29006105]
[1737863643335,1.07968383,690.57,689.51,0.29006105]
[1737863646433,1.07968383,690.54,689.51,0.29006105]
[1737863649441,1.07968383,690.48,689.51,0.29006105]
[1737863651639,1.07968383,690.43,689.51,0.29006105]
[1737863653941,1.07968383,690.42,689.51,0.29006105]
[1737863657845,1.07968383,690.66,689.51,0.29006105]
[1737863657846,1.07968383,690.39,689.51,0.29006105]
[1737863660744,1.07968383,690.77,689.51,0.29006105]
[1737863663846,0.28950682,690.83,689.51,0.29006105]
[1737863663847,1.07968383,690.79,689.51,0.29006105]
[1737863668050,0.28950682,690.83,689.51,0.29006105]
[1737863674359,1.07968383,690.8,689.51,0.29006105]
[1737863677259,0.28950682,690.83,689.51,0.29006105]
[1737863677260,1.07968383,690.68,689.51,0.29006105]
[1737863680456,0.28950682,690.83,689.51,0.29006105]
[1737863680457,1.07968383,690.65,689.51,0.29006105]
[1737863683362,1.07968383,690.61,689.51,0.29006105]
[1737863686565,1.07968383,690.55,689.51,0.29006105]
[1737863690063,1.07968383,690.54,689.51,0.29006105]
[1737863693071,1.07968383,690.81,689.51,0.29006105]
[1737863693072,1.07968383,690.36,689.51,0.29006105]
[1737863699174,1.07968383,690.38,689.51,0.29006105]
[1737863702173,1.07968383,690.75,689.51,0.29006105]
[1737863705374,1.07968383,690.74,689.51,0.29006105]
[1737863709382,1.07968383,690.7,689.51,0.29006105]
[1737863712887,1.07968383,690.53,689.51,0.29006105]
[1737863715798,1.07968383,690.55,689.51,0.29006105]
[1737863719999,1.07968383,690.48,689.51,0.29006105]
[1737863722694,0.70599769,690.82,689.51,0.29006105]
[1737863722695,1.07968383,690.45,689.51,0.29006105]
[1737863727005,1.07968383,690.43,689.51,0.29006105]
[1737863730504,1.07968383,690.4,689.51,0.29006105]
[1737863734507,1.07968383,690.44,689.51,0.29006105]
[1737863737608,0.70599769,690.8,689.51,0.29006105]
[1737863737609,1.07968383,690.46,689.51,0.29006105]
[1737863740705,1.07968383,690.41,689.51,0.29006105]
[1737863744314,1.07968383,690.47,689.51,0.29006105]
[1737863747317,1.07968383,690.51,689.51,0.29006105]
[1737863750317,1.07968383,690.68,689.51,0.29006105]
[1737863754417,1.07968383,690.72,689.51,0.29006105]
[1737863754711,0.28955712,690.71,689.51,0.29006105]
[1737863756718,1.07968383,690.7,689.51,0.29006105]
[1737863756914,0.2895655,690.69,689.51,0.29006105]
[1737863760121,1.07968383,690.49,689.51,0.29006105]
[1737863763323,1.07968383,690.44,689.51,0.29006105]
[1737863766130,1.07968383,690.58,689.51,0.29006105]
[1737863770532,1.07968383,690.56,689.51,0.29006105]
[1737863773437,1.07968383,690.65,689.51,0.29006105]
[1737863776140,0.2895655,690.69,689.51,0.29006105]
[1737863812968,1.07968383,690.73,689.51,0.29006105]
[1737863813464,8.65051305,698.88,689.51,0.29006105]
[1737863813465,1.07968383,690.72,689.51,0.29006105]
[1737863816876,1.07968383,690.77,689.51,0.29006105]
[1737863819775,1.07968383,690.7,689.51,0.29006105]
[1737863822978,1.07968383,690.7,689.52,0.26634269]
[1737863823182,1.07968383,690.7,689.53,0.29005264]
[1737863823381,1.07968383,690.7,689.54,0.26634269]
[1737863823580,1.07968383,690.7,689.55,0.29004423]
[1737863823879,1.07968383,690.7,689.56,0.26634269]
[1737863824082,1.07968383,690.7,689.57,0.29003581]
[1737863824382,1.07968383,690.7,689.58,0.26634269]
[1737863824581,1.07968383,690.7,689.59,0.2900274]
[1737863826485,1.07968383,690.64,689.59,0.2900274]
[1737863827383,1.07968383,690.64,689.6,0.26635635]
[1737863827584,1.07968383,690.64,689.61,0.29001899]
[1737863829879,1.07968383,690.66,689.61,0.29001899]
[1737863833387,1.07968383,690.65,689.61,0.29001899]
[1737863836989,2.2043545,691.4,689.61,0.29001899]
[1737863836990,1.07968383,690.61,689.61,0.29001899]
[1737863837691,1.07968383,690.61,689.62,0.26637063]
[1737863839095,1.07968383,690.61,689.61,0.29001899]
[1737863839795,1.07968383,690.61,689.62,0.26637589]
[1737863840194,1.07968383,690.61,689.61,0.29001899]
[1737863840895,1.07968383,690.48,689.61,0.29001899]
[1737863844495,1.07968383,690.59,689.61,0.29001899]
[1737863847901,0.70525765,691.46,689.61,0.29001899]
[1737863847902,1.07968383,690.7,689.61,0.29001899]
[1737863851500,1.07968383,690.73,689.61,0.29001899]
[1737863855106,1.07968383,690.59,689.61,0.29001899]
[1737863859307,1.07968383,690.58,689.61,0.29001899]
[1737863865102,1.07968383,690.83,689.61,0.29001899]
[1737863865307,0.28951101,690.82,689.61,0.29001899]
[1737863868511,1.07968383,690.8,689.61,0.29001899]
[1737863871614,0.28951101,690.82,689.61,0.29001899]
[1737863875018,1.07968383,690.64,689.61,0.29001899]
[1737863878321,0.28951101,690.82,689.61,0.29001899]
[1737863878322,1.07968383,690.58,689.61,0.29001899]
[1737863881419,1.07968383,690.53,689.61,0.29001899]
[1737863885526,1.07968383,690.55,689.61,0.29001899]
[1737863888728,1.07968383,690.59,689.61,0.29001899]
[1737863892426,1.07968383,690.6,689.61,0.29001899]
[1737863895728,1.07968383,690.62,689.61,0.29001899]
[1737863898529,0.28951101,690.82,689.61,0.29001899]
[1737863927552,1.07968383,690.75,689.61,0.29001899]
[1737863930660,0.28951101,690.82,689.61,0.29001899]
[1737863939669,1.07968383,690.79,689.61,0.29001899]
[1737863943172,1.07968383,690.66,689.61,0.29001899]
[1737863946075,1.07968383,690.71,689.61,0.29001899]
[1737863948772,0.28951101,690.82,689.61,0.29001899]
[1737863948773,1.07968383,690.74,689.61,0.29001899]
[1737863951281,1.07968383,690.72,689.61,0.29001899]
[1737863954077,1.07968383,690.67,689.61,0.29001899]
[1737863956776,1.07968383,690.66,689.61,0.29001899]
[1737863959983,1.07968383,690.63,689.61,0.29001899]
[1737863963385,1.07968383,690.44,689.61,0.29001899]
[1737863966291,1.07968383,690.48,689.61,0.29001899]
[1737863969490,1.07968383,690.68,689.61,0.29001899]
[1737863973392,1.07968383,690.77,689.61,0.29001899]
[1737863976096,0.28951101,690.82,689.61,0.29001899]
[1737863989699,1.07968383,690.58,689.61,0.29001899]
[1737863992605,1.07968383,690.65,689.61,0.29001899]
[1737863994607,1.07968383,690.69,689.61,0.29001899]
[1737863997405,0.28951101,690.82,689.61,0.29001899]
[1737863997406,1.07968383,690.67,689.61,0.29001899]
[1737864002018,1.07968383,690.63,689.61,0.29001899]
[1737864005918,1.07968383,690.55,689.61,0.29001899]
[1737864009521,0.28951101,690.82,689.61,0.29001899]
[1737864018518,1.07968383,690.67,689.61,0.29001899]
[1737864023928,0.28951101,690.82,689.61,0.29001899]
[1737864023929,1.07968383,690.79,689.61,0.29001899]
[1737864026930,1.07968383,690.67,689.61,0.29001899]
[1737864030133,1.07968383,690.76,689.61,0.29001899]
[1737864033433,1.07968383,690.73,689.61,0.29001899]
[1737864036438,1.07968383,690.8,689.61,0.29001899]
[1737864039139,1.07968383,690.76,689.61,0.29001899]
[1737864044545,0.28951101,690.82,689.61,0.29001899]
[1737864044546,1.07968383,690.67,689.61,0.29001899]
[1737864046845,0.28951101,690.82,689.61,0.29001899]
[1737864046846,1.07968383,690.58,689.61,0.29001899]
[1737864051149,1.07968383,690.57,689.61,0.29001899]
[1737864055256,1.07968383,690.5,689.61,0.29001899]
[1737864058760,1.07968383,690.63,689.61,0.29001899]
[1737864061954,1.07968383,690.65,689.61,0.29001899]
[1737864064561,1.07968383,690.51,689.61,0.29001899]
[1737864067264,1.07968383,690.59,689.61,0.29001899]
[1737864073166,1.07968383,690.48,689.61,0.29001899]
[1737864076465,1.07968383,690.6,689.61,0.29001899]
[1737864079866,1.07968383,690.56,689.61,0.29001899]
[1737864083573,0.28951101,690.82,689.61,0.29001899]
[1737864083574,1.07968383,690.49,689.61,0.29001899]
[1737864086277,1.07968383,690.41,689.61,0.29001899]
[1737864089575,1.07968383,690.47,689.61,0.29001899]
[1737864095481,1.07968383,690.45,689.61,0.29001899]
[1737864098281,1.07968383,690.4,689.61,0.29001899]
[1737864101083,1.07968383,690.34,689.61,0.29001899]
[1737864107186,1.07968383,690.32,689.61,0.29001899]
[1737864109982,1.07968383,690.37,689.61,0.29001899]
[1737864111085,1.07968383,690.37,689.2,1.0751988]
[1737864111385,1.07968383,690.37,689.21,0.29018731]
[1737864113588,1.07968383,690.41,689.21,0.29018731]
[1737864115593,1.07968383,690.43,689.21,0.29018731]
[1737864118192,0.28951939,690.8,689.21,0.29018731]
[1737864118193,1.07968383,690.42,689.21,0.29018731]
[1737864120392,1.07968383,690.42,689.22,0.26647737]
[1737864121489,1.07968383,690.42,689.21,0.29018731]
[1737864121688,1.07968383,690.39,689.22,0.26648095]
[1737864123591,1.07968383,690.39,689.21,0.29018731]
[1737864124797,1.07968383,690.26,689.21,0.29018731]
[1737864127094,0.28952778,690.78,689.21,0.29018731]
[1737864127095,1.07968383,690.34,689.21,0.29018731]
[1737864130294,1.07968383,690.71,689.21,0.29018731]
[1737864130295,1.07968383,690.37,689.21,0.29018731]
[1737864133501,1.07968383,690.46,689.21,0.29018731]
[1737864136097,1.07968383,690.43,689.21,0.29018731]
[1737864139300,1.07968383,690.44,689.21,0.29018731]
[1737864140910,1.07968383,690.42,689.21,0.29018731]
[1737864144408,1.07968383,690.56,689.21,0.29018731]
[1737864146507,0.28962421,690.55,689.21,0.29018731]
[1737864153323,1.07968383,690.31,689.21,0.29018731]
[1737864155719,1.07968383,690.32,689.21,0.29018731]
[1737864159126,1.07968383,690.38,689.21,0.29018731]
[1737864161519,1.07968383,690.35,689.21,0.29018731]
[1737864166528,1.07968383,690.34,689.21,0.29018731]
[1737864170031,1.07968383,690.32,689.21,0.29018731]
[1737864173237,1.07968383,690.26,689.21,0.29018731]
[1737864176137,1.07968383,690.19,689.21,0.29018731]
[1737864179639,1.07968383,690.28,689.21,0.29018731]
[1737864183146,1.07968383,690.31,689.21,0.29018731]
[1737864186643,1.07968383,690.38,689.21,0.29018731]
[1737864191048,1.07968383,690.29,689.21,0.29018731]
[1737864194752,1.07968383,690.4,689.21,0.29018731]
[1737864197652,1.07968383,690.43,689.21,0.29018731]
[1737864199750,1.07968383,690.38,689.21,0.29018731]
[1737864202152,1.07968383,690.3,689.21,0.29018731]
[1737864206257,1.07968383,690.51,689.21,0.29018731]
[1737864206458,0.28964518,690.5,689.21,0.29018731]
[1737864209964,1.07968383,690.13,689.21,0.29018731]
[1737864212659,1.07968383,690.15,689.21,0.29018731]
[1737864215858,1.07968383,690.17,689.21,0.29018731]
[1737864218868,1.07968383,690.26,689.21,0.29018731]
[1737864222066,1.07968383,690.41,689.21,0.29018731]
[1737864228068,1.36936677,690.41,689.21,0.29018731]
[1737864228273,0.28968713,690.4,689.21,0.29018731]
[1737864229175,1.36937096,690.4,689.21,0.29018731]
[1737864232472,1.07968383,690.19,689.21,0.29018731]
[1737864238279,1.07968383,690.2,689.21,0.29018731]
[1737864242182,1.07968383,690.14,689.21,0.29018731]
[1737864245088,1.07968383,690.19,689.21,0.29018731]
[1737864247980,1.07968383,690.14,689.21,0.29018731]
[1737864256092,0.28968713,690.4,689.21,0.29018731]
[1737864256093,1.07968383,690.08,689.21,0.29018731]
[1737864258496,1.07968383,690.02,689.21,0.29018731]
[1737864262598,1.07968383,689.97,689.21,0.29018731]
[1737864265803,0.7060614,690.39,689.21,0.29018731]
[1737864265804,1.07968383,690.03,689.21,0.29018731]
[1737864268904,1.07968383,689.99,689.21,0.29018731]
[1737864274906,1.07968383,689.94,689.21,0.29018731]
[1737864279102,1.07968383,689.85,689.21,0.29018731]
[1737864282910,1.07968383,689.86,689.21,0.29018731]
[1737864295523,1.07968383,690.03,689.21,0.29018731]
[1737864298127,1.07968383,690.02,689.21,0.29018731]
[1737864304231,0.28968713,690.4,689.21,0.29018731]
[1737864304232,1.07968383,690.08,689.21,0.29018731]
[1737864310840,1.07968383,690.21,689.21,0.29018731]
[1737864314840,1.07968383,690.32,689.21,0.29018731]
[1737864318342,1.07968383,690.35,689.21,0.29018731]
[1737864321144,0.28968713,690.4,689.21,0.29018731]
[1737864329848,1.07968383,690.34,689.21,0.29018731]
[1737864332556,1.07968383,690.32,689.21,0.29018731]
[1737864336260,1.07968383,690.27,689.21,0.29018731]
[1737864339560,1.07968383,690.2,689.21,0.29018731]
[1737864340457,1.07968383,690.2,689.22,0.26652819]
[1737864342362,1.07968383,690.2,689.21,0.29018731]
[1737864342956,1.07968383,690.2,689.22,0.26652612]
[1737864343162,1.07968383,690.11,689.21,0.29018731]
[1737864345765,1.07968383,690.11,689.22,0.26653018]
[1737864347362,1.07968383,690.04,689.22,0.26653018]
[1737864349469,1.07968383,690.04,689.21,0.29018731]
[1737864349668,1.07968383,690.04,689.22,0.26652783]
[1737864350269,1.07968383,690.02,689.22,0.26652783]
[1737864352171,1.07968383,690.02,689.21,1.36538611]
[1737864353876,1.07968383,689.98,689.21,0.29018731]
[1737864358978,1.07968383,690.0,689.21,0.29018731]
[1737864361978,1.07968383,689.99,689.21,0.29018731]
[1737864365381,0.70534926,690.39,689.21,0.29018731]
[1737864365382,1.07968383,690.01,689.21,0.29018731]
[1737864368283,0.28968713,690.4,689.21,0.29018731]
[1737864368284,1.07968383,690.17,689.21,0.29018731]
[1737864371783,1.07968383,690.19,689.21,0.29018731]
[1737864374387,1.07968383,690.27,689.21,0.29018731]
[1737864379089,0.28968713,690.4,689.21,0.29018731]
[1737864393201,1.07968383,690.31,689.21,0.29018731]
[1737864404011,1.07968383,690.27,689.21,0.29018731]
[1737864406407,1.07968383,690.3,689.21,0.29018731]
[1737864414819,0.28968713,690.4,689.21,0.29018731]
[1737864421526,1.07968383,690.34,689.21,0.29018731]
[1737864424124,1.07968383,690.28,689.21,0.29018731]
[1737864427228,0.28968713,690.4,689.21,0.29018731]
[1737864427229,1.07968383,690.33,689.21,0.29018731]
[1737864431831,1.07968383,690.38,689.21,0.29018731]
[1737864438231,1.07968383,690.34,689.21,0.29018731]
[1737864443938,1.07968383,690.34,689.22,0.26649561]
[1737864444139,1.07968383,690.34,689.23,0.29017889]
[1737864444334,1.07968383,690.33,689.24,0.26649561]
[1737864444540,1.07968383,690.33,689.25,0.29017047]
[1737864447941,1.07968383,690.28,689.25,0.29017047]
[1737864451844,1.07968383,690.29,689.25,0.29017047]
[1737864454849,1.07968383,690.3,689.25,0.29017047]
[1737864458655,1.07968383,690.28,689.25,0.29017047]
[1737864462054,1.07968383,690.27,689.25,0.29017047]
[1737864464164,1.07968383,690.26,689.25,0.29017047]
[1737864467768,1.07968383,690.32,689.25,0.29017047]
[1737864472075,1.07968383,690.56,689.25,0.29017047]
[1737864475773,1.07968383,690.61,689.25,0.29017047]
[1737864478572,1.07968383,690.64,689.25,0.29017047]
[1737864480579,1.07968383,690.64,689.26,0.26647513]
[1737864480976,1.07968383,690.64,689.27,0.29016205]
[1737864481178,2.35253356,691.0,689.28,0.26647513]
[1737864481179,1.07968383,690.46,689.28,0.26647513]
[1737864481480,1.07968383,690.46,689.29,0.29015363]
[1737864481678,1.07968383,690.46,689.3,0.26647513]
[1737864481879,1.07968383,690.46,689.31,0.29014521]
[1737864482079,1.07968383,690.46,689.32,0.26647513]
[1737864482478,1.07968383,690.46,689.33,0.29013679]
[1737864484776,1.07968383,690.27,689.33,0.29013679]
[1737864489887,1.07968383,690.4,689.33,0.29013679]
[1737864493790,1.07968383,690.66,689.33,0.29013679]
[1737864493791,1.07968383,690.41,689.33,0.29013679]
[1737864497496,1.07968383,690.42,689.33,0.29013679]
[1737864499694,1.07968383,690.38,689.33,0.29013679]
[1737864500495,1.07968383,690.38,689.34,0.26645206]
[1737864500695,1.07968383,690.38,689.35,0.29012838]
[1737864502600,1.07968383,690.34,689.35,0.29012838]
[1737864505703,1.07968383,690.33,689.35,0.29012838]
[1737864505905,1.07968383,690.33,689.36,0.26644643]
[1737864506102,1.07968383,690.33,689.37,0.29011996]
[1737864509006,2.2043545,690.95,689.37,0.29011996]
[1737864509007,1.07968383,690.31,689.37,0.29011996]
[1737864511304,1.07968383,690.56,689.37,0.29011996]
[1737864514412,1.07968383,690.64,689.37,0.29011996]
[1737864515413,1.07968383,690.64,689.38,0.26639827]
[1737864515712,1.07968383,690.64,689.39,0.29011154]
[1737864520912,1.07968383,690.76,689.39,0.29011154]
[1737864524517,1.07968383,690.79,689.39,0.29011154]
[1737864527819,1.07968383,690.77,689.39,0.29011154]
[1737864530521,1.07968383,690.71,689.39,0.29011154]
[1737864532718,1.07968383,690.71,689.4,0.26639357]
[1737864532919,1.07968383,690.71,689.41,0.29010313]
[1737864533121,1.07968383,690.71,689.42,0.26639357]
[1737864533321,1.07968383,690.71,689.43,0.5564836]
[1737864533523,1.07968383,690.71,689.44,0.55647939]
[1737864533725,1.07968383,690.67,689.45,0.2900863]
[1737864535622,1.07968383,690.64,689.45,0.2900863]
[1737864538128,1.07968383,690.63,689.45,0.2900863]
[1737864541429,1.07968383,690.58,689.45,0.2900863]
[1737864547633,1.07968383,690.53,689.45,0.2900863]
[1737864550030,1.07968383,690.52,689.45,0.2900863]
[1737864552138,1.07968383,690.47,689.47,1.0751988]
[1737864552338,1.07968383,690.47,689.48,0.29007367]
[1737864555342,1.07968383,690.52,689.48,0.29007367]
[1737864561147,0.70443738,690.96,689.48,0.29007367]
[1737864561148,1.07968383,690.5,689.48,0.29007367]
[1737864563857,1.07968383,690.5,689.49,0.26639795]
[1737864564052,1.07968383,690.5,689.5,0.29006526]
[1737864564247,1.07968383,690.76,689.5,0.29006526]
[1737864564248,1.07968383,690.49,689.51,0.26639795]
[1737864564555,1.07968383,690.49,689.52,0.29005685]
[1737864567355,1.07968383,690.75,689.52,0.29005685]
[1737864567356,1.07968383,690.43,689.52,0.29005685]
[1737864570253,1.07968383,690.44,689.52,0.29005685]
[1737864573763,1.07968383,690.48,689.52,0.29005685]
[1737864576862,1.07968383,690.42,689.52,0.29005685]
[1737864579263,1.07968383,690.43,689.52,0.29005685]
[1737864582463,1.2956206,690.93,689.52,0.29005685]
[1737864582464,1.07968383,690.42,689.52,0.29005685]
[1737864586258,1.07968383,690.44,689.52,0.29005685]
[1737864588561,1.07968383,690.67,689.52,0.29005685]
[1737864591769,1.07968383,690.71,689.52,0.29005685]
[1737864595571,1.07968383,690.72,689.52,0.29005685]
[1737864599073,0.28944816,690.97,689.52,0.29005685]
[1737864599074,1.07968383,690.64,689.52,0.29005685]
[1737864599369,1.07968383,690.64,689.53,0.2663624]
[1737864599572,1.07968383,690.64,689.54,0.29004843]
[1737864599774,1.07968383,690.64,689.55,0.26636408]
[1737864600074,1.07968383,690.64,689.56,0.29004002]
[1737864600269,1.07968383,690.64,689.57,0.26636408]
[1737864600480,1.07968383,690.64,689.58,0.29003161]
[1737864601475,1.07968383,690.55,689.58,0.29003161]
[1737864604576,1.07968383,690.61,689.58,0.29003161]
[1737864607681,0.70522538,690.96,689.58,0.29003161]
[1737864607682,1.07968383,690.58,689.58,0.29003161]
[1737864610381,1.07968383,690.63,689.58,0.29003161]
[1737864613582,1.07968383,690.62,689.58,0.29003161]
[1737864615791,1.07968383,690.58,689.58,0.29003161]
[1737864619794,1.07968383,690.56,689.58,0.29003161]
[1737864621893,1.07968383,690.59,689.58,0.29003161]
[1737864624195,1.07968383,690.61,689.58,0.29003161]
[1737864627595,1.07968383,690.6,689.58,0.29003161]
[1737864630399,1.07968383,690.59,689.58,0.29003161]
[1737864632499,1.07968383,690.66,689.58,0.29003161]
[1737864635702,0.28944816,690.97,689.58,0.29003161]
[1737864635703,1.07968383,690.68,689.58,0.29003161]
[1737864638604,1.07968383,690.69,689.58,0.29003161]
[1737864643009,1.07968383,690.49,689.58,0.29003161]
[1737864647110,1.07968383,690.47,689.58,0.29003161]
[1737864650107,1.07968383,690.42,689.58,0.29003161]
[1737864655912,1.07968383,690.46,689.58,0.29003161]
[1737864659616,1.07968383,690.45,689.58,0.29003161]
[1737864663019,1.07968383,690.67,689.58,0.29003161]
[1737864666916,1.07968383,690.66,689.58,0.29003161]
[1737864672626,1.07968383,690.5,689.58,0.29003161]
[1737864679125,1.07968383,690.53,689.58,0.29003161]
[1737864682130,0.99546636,690.94,689.58,0.29003161]
[1737864682131,1.07968383,690.52,689.58,0.29003161]
[1737864684428,1.07968383,690.51,689.58,0.29003161]
[1737864688035,1.07968383,690.45,689.58,0.29003161]
[1737864690736,1.07968383,690.35,689.58,0.29003161]
[1737864697237,1.07968383,690.34,689.58,0.29003161]
[1737864699842,1.07968383,690.4,689.58,0.29003161]
[1737864703247,1.07968383,690.63,689.58,0.29003161]
[1737864703248,1.07968383,690.39,689.58,0.29003161]
[1737864706550,1.07968383,690.49,689.58,0.29003161]
[1737864709348,1.07968383,690.54,689.58,0.29003161]
[1737864712055,1.07968383,690.58,688.93,1.0751988]
[1737864712253,1.07968383,690.58,688.95,0.29029682]
[1737864712450,1.07968383,690.58,688.96,0.26650485]
[1737864712655,1.07968383,690.58,688.98,0.29028418]
[1737864712956,1.07968383,690.58,688.99,0.26650485]
[1737864713151,1.07968383,690.58,689.01,0.29027154]
[1737864713357,1.07968383,690.58,689.02,0.26649999]
[1737864713557,1.07968383,690.58,689.04,0.29025891]
[1737864714255,1.07968383,690.58,689.05,0.26649373]
[1737864714456,1.07968383,690.58,689.07,0.29024627]
[1737864715451,1.07968383,690.47,689.07,0.29024627]
[1737864718558,0.28946073,690.94,689.07,0.29024627]
[1737864718559,1.07968383,690.53,689.07,0.29024627]
[1737864721664,1.07968383,690.53,689.08,0.2664972]
[1737864721865,1.07968383,690.53,689.09,0.29023784]
[1737864722065,1.07968383,690.53,689.1,0.2664972]
[1737864722266,1.07968383,690.52,689.11,0.29022942]
[1737864722465,1.07968383,690.52,689.12,0.2664972]
[1737864722666,1.07968383,690.52,689.13,0.290221]
[1737864722866,1.07968383,690.52,689.14,0.2664972]
[1737864723066,1.07968383,690.52,689.15,0.29021258]
[1737864723460,1.07968383,690.52,689.16,0.26649365]
[1737864723664,1.07968383,690.52,689.17,0.29020415]
[1737864725266,1.07968383,690.52,689.18,0.26649531]
[1737864725465,1.07968383,690.52,689.19,0.29019573]
[1737864725665,1.07968383,690.43,689.2,0.26649531]
[1737864725868,1.07968383,690.43,689.21,0.29018731]
[1737864735574,1.07968383,690.36,689.21,0.29018731]
[1737864736368,1.07968383,690.36,689.22,0.26648516]
[1737864736569,1.07968383,690.36,689.23,0.29017889]
[1737864736769,1.07968383,690.36,689.24,0.26648516]
[1737864736972,1.07968383,690.36,689.25,0.29017047]
[1737864737170,1.07968383,690.36,689.26,0.26648516]
[1737864737374,1.07968383,690.36,689.27,0.29016205]
[1737864737878,1.07968383,690.36,689.28,0.26648466]
[1737864738078,1.07968383,690.36,689.29,0.29015363]
[1737864738277,1.07968383,690.25,689.29,0.29015363]
[1737864739874,1.07968383,690.25,689.3,0.26648448]
[1737864741481,1.07968383,690.19,689.3,0.26648448]
[1737864741780,1.07968383,690.19,689.29,0.29015363]
[1737864744284,1.07968383,690.32,689.29,0.29015363]
[1737864746885,1.07968383,690.37,689.29,0.29015363]
[1737864753393,0.70386768,690.88,689.29,0.29015363]
[1737864753394,1.07968383,690.38,689.29,0.29015363]
[1737864755899,1.07968383,690.25,689.29,0.29015363]
[1737864761503,0.70386768,690.86,689.29,0.29015363]
[1737864761504,1.07968383,690.58,689.29,0.29015363]
[1737864764198,2.2043545,691.65,689.29,0.29015363]
[1737864764199,1.07968383,690.61,689.29,0.29015363]
[1737864767104,1.07968383,690.6,689.29,0.29015363]
[1737864771305,1.07968383,690.49,689.29,0.29015363]
[1737864774405,0.70577365,690.86,689.29,0.29015363]
[1737864774406,1.07968383,690.47,689.29,0.29015363]
[1737864777703,1.07968383,690.45,689.29,0.29015363]
[1737864780006,1.07968383,690.45,689.3,0.26643451]
[1737864780407,1.07968383,690.45,689.31,0.29014521]
[1737864781811,1.07968383,690.48,689.31,0.29014521]
[1737864782409,1.07968383,690.48,689.32,0.26643544]
[1737864782613,1.07968383,690.48,689.33,0.29013679]
[1737864784907,0.70577365,690.86,689.33,0.29013679]
[1737864784908,1.07968383,690.42,689.33,0.29013679]
[1737864787711,1.07968383,690.46,689.33,0.29013679]
[1737864791214,1.07968383,690.42,689.33,0.29013679]
[1737864793316,1.07968383,690.42,689.34,0.26643601]
[1737864793516,1.07968383,690.42,689.35,0.29012838]
[1737864793717,1.07968383,690.42,689.36,0.26643601]
[1737864794019,1.07968383,690.42,689.37,0.29011996]
[1737864794218,0.70577365,690.84,689.37,0.29011996]
[1737864794219,1.07968383,690.41,689.38,0.26643601]
[1737864794413,1.07968383,690.41,689.39,0.29011154]
[1737864794613,1.07968383,690.41,689.4,0.26643601]
[1737864794818,1.07968383,690.41,689.41,0.29010313]
[1737864795119,1.07968383,690.41,689.42,0.26643601]
[1737864795320,1.07968383,690.41,689.42,0.55653493]
[1737864795620,1.07968383,690.41,689.42,0.29009892]
[1737864796820,1.07968383,690.41,689.43,0.26643727]
[1737864797621,1.07968383,690.31,689.43,0.26643727]
[1737864798522,1.07968383,690.31,689.44,0.2900905]
[1737864801219,0.70577365,690.84,689.44,0.2900905]
[1737864801220,1.07968383,690.37,689.44,0.2900905]
[1737864805325,1.07968383,690.62,689.44,0.2900905]
[1737864811730,1.07968383,690.51,689.44,0.2900905]
[1737864812324,1.07968383,690.51,689.45,0.26640957]
[1737864812530,1.07968383,690.51,689.46,0.29008209]
[1737864812829,1.07968383,690.51,689.47,0.26640957]
[1737864813030,1.07968383,690.51,689.48,0.29007367]
[1737864813230,1.07968383,690.51,689.49,0.26640957]
[1737864813432,1.07968383,690.51,689.48,0.29007367]
[1737864815431,1.07968383,690.42,689.48,0.29007367]
[1737864818533,1.07968383,690.63,689.48,0.29007367]
[1737864823027,1.07968383,690.66,689.48,0.29007367]
[1737864824029,1.07968383,690.66,689.49,0.26638638]
[1737864824230,1.07968383,690.66,689.5,0.29006526]
[1737864827537,1.07968383,690.6,689.5,0.29006526]
[1737864831341,1.07968383,690.67,689.5,0.29006526]
[1737864835334,1.07968383,690.67,689.51,0.26636809]
[1737864835641,1.07968383,690.67,689.52,0.29005685]
[1737864837047,1.07968383,690.67,689.53,0.2663696]
[1737864837246,1.07968383,690.67,689.54,0.29004843]
[1737864837945,1.07968383,690.62,689.54,0.29004843]
[1737864840350,1.07968383,690.63,689.54,0.29004843]
[1737864843754,1.07968383,690.59,689.54,0.29004843]
[1737864847058,1.07968383,690.62,689.54,0.29004843]
[1737864851458,0.28949844,690.85,689.54,0.29004843]
[1737864851459,1.07968383,690.54,689.54,0.29004843]
[1737864854561,0.28949844,690.85,689.54,0.29004843]
[1737864854562,1.07968383,690.67,689.54,0.29004843]
[1737864861371,1.07968383,690.71,689.54,0.29004843]
[1737864861969,1.07968383,690.71,689.55,0.26634189]
[1737864862274,1.07968383,690.71,689.56,0.29004002]
[1737864863271,1.07968383,690.71,689.57,0.26634158]
[1737864863774,1.07968383,690.71,689.58,0.29003161]
[1737864863972,1.07968383,690.67,689.58,0.29003161]
[1737864867272,1.07968383,690.67,689.59,0.26634312]
[1737864867470,1.07968383,690.67,689.6,0.2900232]
[1737864867672,1.07968383,690.67,689.61,0.26634312]
[1737864867872,1.07968383,690.67,689.62,0.29001479]
[1737864868070,1.07968383,690.67,689.63,0.26634312]
[1737864868270,1.07968383,690.67,689.64,0.29000638]
[1737864868471,1.07968383,690.67,689.65,0.26634312]